{"text_format":"1","workbook":"xlsx","n_sheets":4,"sheets":["ce0","mesures","etalons","Infos"],"not_rendered":{"charts":0,"images":0,"macros":1,"external_links":1,"defined_names":58,"comments":0,"pivot_tables":0},"unopened":[],"bounds":{"document_bytes":16777216,"sheet_cells":100000,"rows_first":2000,"rows_last":500,"rows_between":2000,"halvings":0,"cell_chars":16384,"cell_head_chars":4096},"cells_cut":0,"cells_raw":0,"read":"whole","date_system":"1900"}

{"sheet":"ce0","index":0,"n_rows":76,"n_cols":64,"rows_kept":76,"cut":false,"hidden":false,"merged":[[7,59,7,64],[5,56,5,58],[7,56,7,58],[6,56,6,58],[6,59,6,64],[4,56,4,58],[4,59,4,64],[5,59,5,64],[8,59,8,64]]}
[]
[]
[]
[]
[]
[]
[]
[]
[]
[]
[]
[null,null,null,null,null,null,null,null,null,null,null,null,null,null,null,null,null,null,null,null,null,null,null,null,null,null,null,null,null,null,null,null,null,null,null,null,null,null,null,null,null,null,null,null,null,null,null,null,null,null,null,null,null,null,null,null,"9 - RESULTATS DE MESURE"]
[]
[null,null,null,null,null,null,null,null,null,null,null,null,null,null,null,null,null,null,null,null,null,null,null,null,null,null,null,null,null,null,null,null,null,null,null,null,null,null,null,null,null,null,null,null,null,null,null,null,null,null,null,null,null,null,null,null,{"$f":"\"Examen visuel et tactile :\"","v":"Examen visuel et tactile :"},null,null,null,null,{"$f":"mesures!B16&\" \"&mesures!B17&\" \"&mesures!B18&\" \"&mesures!B19&\" \"&mesures!B20","v":"    "}]
[]
[]
[null,null,null,null,null,null,null,null,null,null,null,null,null,null,null,null,null,null,null,null,null,null,null,null,null,null,null,null,null,null,null,null,null,null,null,null,null,null,null,null,null,null,null,null,null,null,null,null,null,null,null,null,null,null,null,null,"Résultats :"]
[null,null,null,null,null,null,null,null,null,null,null,null,null,null,null,null,null,null,null,null,null,null,null,null,null,null,null,null,null,null,null,null,null,null,null,null,null,null,null,null,null,null,null,null,null,null,null,null,null,null,null,null,null,null,null,null,null,null,null,{"$f":"IF(mesures!A55<>\"\",mesures!A55,\"\")","v":2},{"$f":"IF(mesures!B55<>\"\",mesures!B55,\"\")","v":2},{"$f":"IF(mesures!C55<>\"\",mesures!C55,\"\")","v":2},{"$f":"IF(mesures!D55<>\"\",mesures!D55,\"\")","v":2},{"$f":"IF(mesures!E55<>\"\",mesures!E55,\"\")","v":2}]
[null,null,null,null,null,null,null,null,null,null,null,null,null,null,null,null,null,null,null,null,null,null,null,null,null,null,null,null,null,null,null,null,null,null,null,null,null,null,null,null,null,null,null,null,null,null,null,null,null,null,null,null,null,null,null,null,null,null,null,{"$f":"IF(mesures!A56<>\"\",mesures!A56,\"\")","v":3},{"$f":"IF(mesures!B56<>\"\",mesures!B56,\"\")","v":3},{"$f":"IF(mesures!C56<>\"\",mesures!C56,\"\")","v":3},{"$f":"IF(mesures!D56<>\"\",mesures!D56,\"\")","v":3},{"$f":"IF(mesures!E56<>\"\",mesures!E56,\"\")","v":3}]
[null,null,null,null,null,null,null,null,null,null,null,null,null,null,null,null,null,null,null,null,null,null,null,null,null,null,null,null,null,null,null,null,null,null,null,null,null,null,null,null,null,null,null,null,null,null,null,null,null,null,null,null,null,null,null,null,null,null,null,{"$f":"IF(mesures!A57<>\"\",mesures!A57,\"\")","v":35},{"$f":"IF(mesures!B57<>\"\",mesures!B57,\"\")","v":35},{"$f":"IF(mesures!C57<>\"\",mesures!C57,\"\")","v":35},{"$f":"IF(mesures!D57<>\"\",mesures!D57,\"\")","v":35},{"$f":"IF(mesures!E57<>\"\",mesures!E57,\"\")","v":35}]
[null,null,null,null,null,null,null,null,null,null,null,null,null,null,null,null,null,null,null,null,null,null,null,null,null,null,null,null,null,null,null,null,null,null,null,null,null,null,null,null,null,null,null,null,null,null,null,null,null,null,null,null,null,null,null,null,null,null,null,{"$f":"IF(mesures!A58<>\"\",mesures!A58,\"\")","v":2},{"$f":"IF(mesures!B58<>\"\",mesures!B58,\"\")","v":2},{"$f":"IF(mesures!C58<>\"\",mesures!C58,\"\")","v":2},{"$f":"IF(mesures!D58<>\"\",mesures!D58,\"\")","v":2},{"$f":"IF(mesures!E58<>\"\",mesures!E58,\"\")","v":2}]
[null,null,null,null,null,null,null,null,null,null,null,null,null,null,null,null,null,null,null,null,null,null,null,null,null,null,null,null,null,null,null,null,null,null,null,null,null,null,null,null,null,null,null,null,null,null,null,null,null,null,null,null,null,null,null,null,null,null,null,{"$f":"IF(mesures!A59<>\"\",mesures!A59,\"\")","v":6},{"$f":"IF(mesures!B59<>\"\",mesures!B59,\"\")","v":6},{"$f":"IF(mesures!C59<>\"\",mesures!C59,\"\")","v":6},{"$f":"IF(mesures!D59<>\"\",mesures!D59,\"\")","v":6},{"$f":"IF(mesures!E59<>\"\",mesures!E59,\"\")","v":6}]
[null,null,null,null,null,null,null,null,null,null,null,null,null,null,null,null,null,null,null,null,null,null,null,null,null,null,null,null,null,null,null,null,null,null,null,null,null,null,null,null,null,null,null,null,null,null,null,null,null,null,null,null,null,null,null,null,null,null,null,{"$f":"IF(mesures!A60<>\"\",mesures!A60,\"\")","v":39},{"$f":"IF(mesures!B60<>\"\",mesures!B60,\"\")","v":39},{"$f":"IF(mesures!C60<>\"\",mesures!C60,\"\")","v":39},{"$f":"IF(mesures!D60<>\"\",mesures!D60,\"\")","v":39},{"$f":"IF(mesures!E60<>\"\",mesures!E60,\"\")","v":39}]
[null,null,null,null,null,null,null,null,null,null,null,null,null,null,null,null,null,null,null,null,null,null,null,null,null,null,null,null,null,null,null,null,null,null,null,null,null,null,null,null,null,null,null,null,null,null,null,null,null,null,null,null,null,null,null,null,null,null,null,{"$f":"IF(mesures!A61<>\"\",mesures!A61,\"\")","v":5},{"$f":"IF(mesures!B61<>\"\",mesures!B61,\"\")","v":5},{"$f":"IF(mesures!C61<>\"\",mesures!C61,\"\")","v":5},{"$f":"IF(mesures!D61<>\"\",mesures!D61,\"\")","v":5},{"$f":"IF(mesures!E61<>\"\",mesures!E61,\"\")","v":5}]
[null,null,null,null,null,null,null,null,null,null,null,null,null,null,null,null,null,null,null,null,null,null,null,null,null,null,null,null,null,null,null,null,null,null,null,null,null,null,null,null,null,null,null,null,null,null,null,null,null,null,null,null,null,null,null,null,null,null,null,{"$f":"IF(mesures!A62<>\"\",mesures!A62,\"\")","v":36},{"$f":"IF(mesures!B62<>\"\",mesures!B62,\"\")","v":36},{"$f":"IF(mesures!C62<>\"\",mesures!C62,\"\")","v":36},{"$f":"IF(mesures!D62<>\"\",mesures!D62,\"\")","v":36},{"$f":"IF(mesures!E62<>\"\",mesures!E62,\"\")","v":36}]
[null,null,null,null,null,null,null,null,null,null,null,null,null,null,null,null,null,null,null,null,null,null,null,null,null,null,null,null,null,null,null,null,null,null,null,null,null,null,null,null,null,null,null,null,null,null,null,null,null,null,null,null,null,null,null,null,null,null,null,{"$f":"IF(mesures!A63<>\"\",mesures!A63,\"\")","v":5},{"$f":"IF(mesures!B63<>\"\",mesures!B63,\"\")","v":5},{"$f":"IF(mesures!C63<>\"\",mesures!C63,\"\")","v":5},{"$f":"IF(mesures!D63<>\"\",mesures!D63,\"\")","v":5},{"$f":"IF(mesures!E63<>\"\",mesures!E63,\"\")","v":5}]
[null,null,null,null,null,null,null,null,null,null,null,null,null,null,null,null,null,null,null,null,null,null,null,null,null,null,null,null,null,null,null,null,null,null,null,null,null,null,null,null,null,null,null,null,null,null,null,null,null,null,null,null,null,null,null,null,null,null,null,{"$f":"IF(mesures!A64<>\"\",mesures!A64,\"\")","v":4},{"$f":"IF(mesures!B64<>\"\",mesures!B64,\"\")","v":4},{"$f":"IF(mesures!C64<>\"\",mesures!C64,\"\")","v":4},{"$f":"IF(mesures!D64<>\"\",mesures!D64,\"\")","v":4},{"$f":"IF(mesures!E64<>\"\",mesures!E64,\"\")","v":4}]
[null,null,null,null,null,null,null,null,null,null,null,null,null,null,null,null,null,null,null,null,null,null,null,null,null,null,null,null,null,null,null,null,null,null,null,null,null,null,null,null,null,null,null,null,null,null,null,null,null,null,null,null,null,null,null,null,null,null,null,{"$f":"IF(mesures!A65<>\"\",mesures!A65,\"\")","v":56},{"$f":"IF(mesures!B65<>\"\",mesures!B65,\"\")","v":56},{"$f":"IF(mesures!C65<>\"\",mesures!C65,\"\")","v":56},{"$f":"IF(mesures!D65<>\"\",mesures!D65,\"\")","v":56},{"$f":"IF(mesures!E65<>\"\",mesures!E65,\"\")","v":56}]
[null,null,null,null,null,null,null,null,null,null,null,null,null,null,null,null,null,null,null,null,null,null,null,null,null,null,null,null,null,null,null,null,null,null,null,null,null,null,null,null,null,null,null,null,null,null,null,null,null,null,null,null,null,null,null,null,null,null,null,{"$f":"IF(mesures!A66<>\"\",mesures!A66,\"\")","v":5},{"$f":"IF(mesures!B66<>\"\",mesures!B66,\"\")","v":""},{"$f":"IF(mesures!C66<>\"\",mesures!C66,\"\")","v":""},{"$f":"IF(mesures!D66<>\"\",mesures!D66,\"\")","v":""},{"$f":"IF(mesures!E66<>\"\",mesures!E66,\"\")","v":""}]
[null,null,null,null,null,null,null,null,null,null,null,null,null,null,null,null,null,null,null,null,null,null,null,null,null,null,null,null,null,null,null,null,null,null,null,null,null,null,null,null,null,null,null,null,null,null,null,null,null,null,null,null,null,null,null,null,null,null,null,{"$f":"IF(mesures!A67<>\"\",mesures!A67,\"\")","v":6},{"$f":"IF(mesures!B67<>\"\",mesures!B67,\"\")","v":""},{"$f":"IF(mesures!C67<>\"\",mesures!C67,\"\")","v":5},{"$f":"IF(mesures!D67<>\"\",mesures!D67,\"\")","v":""},{"$f":"IF(mesures!E67<>\"\",mesures!E67,\"\")","v":""}]
[null,null,null,null,null,null,null,null,null,null,null,null,null,null,null,null,null,null,null,null,null,null,null,null,null,null,null,null,null,null,null,null,null,null,null,null,null,null,null,null,null,null,null,null,null,null,null,null,null,null,null,null,null,null,null,null,null,null,null,{"$f":"IF(mesures!A68<>\"\",mesures!A68,\"\")","v":""},{"$f":"IF(mesures!B68<>\"\",mesures!B68,\"\")","v":""},{"$f":"IF(mesures!C68<>\"\",mesures!C68,\"\")","v":""},{"$f":"IF(mesures!D68<>\"\",mesures!D68,\"\")","v":""},{"$f":"IF(mesures!E68<>\"\",mesures!E68,\"\")","v":""}]
[null,null,null,null,null,null,null,null,null,null,null,null,null,null,null,null,null,null,null,null,null,null,null,null,null,null,null,null,null,null,null,null,null,null,null,null,null,null,null,null,null,null,null,null,null,null,null,null,null,null,null,null,null,null,null,null,null,null,null,{"$f":"IF(mesures!A69<>\"\",mesures!A69,\"\")","v":""},{"$f":"IF(mesures!B69<>\"\",mesures!B69,\"\")","v":""},{"$f":"IF(mesures!C69<>\"\",mesures!C69,\"\")","v":""},{"$f":"IF(mesures!D69<>\"\",mesures!D69,\"\")","v":""},{"$f":"IF(mesures!E69<>\"\",mesures!E69,\"\")","v":9}]
[]
[]
[]
[]
[]
[]
[]
[]
[]
[]
[]
[]
[]
[]
[]
[]
[]
[]
[]
[]
[]
[]
[]
[]
[]
[]
[]
[]
[]
[]
[]
[]
[]
[]
[]
[]
[]
[]
[]
[]
[]
[]
[]
[null,null,null,null,null,null,null,null,null,null,null,null,null,null,null,null,null,null,null,null,null,null,null,null,null,null,null,null,null,null,null,null,null,null,null,null,null,null,null,null,null,null,null,null,null,null,null,null,null,null,null,null,null,null,null,null,null,{"$f":"etalons!$B$14","v":"Trame_GLOBALE_V2_Ind:1"}]

{"sheet":"mesures","index":1,"n_rows":69,"n_cols":5,"rows_kept":69,"cut":false,"hidden":false,"merged":[[67,5,67,7],[101,21,101,23],[101,24,101,26],[85,28,85,33],[87,28,87,33],[88,28,88,30],[88,31,88,33],[100,28,100,33],[101,28,101,30],[101,31,101,33],[85,21,85,26],[87,21,87,26],[88,21,88,23],[88,24,88,26],[100,21,100,26],[0,4,0,5],[98,14,98,16],[98,17,98,19],[85,14,85,19],[87,14,87,19],[88,14,88,16],[88,17,88,19],[97,14,97,19],[52,0,52,4]]}
[]
[]
[]
[]
[]
[]
[]
[]
[]
[]
[]
[]
[]
[]
[]
[]
[]
[]
[]
[]
[]
[]
[]
[]
[]
[]
[]
[]
[]
[]
[]
[]
[]
[]
[]
[]
[]
[]
[]
[]
[]
[]
[]
[]
[]
[]
[]
[]
[]
[]
[]
[]
["Résultats :"]
[]
[2,2,2,2,2]
[3,3,3,3,3]
[35,35,35,35,35]
[2,2,2,2,2]
[6,6,6,6,6]
[39,39,39,39,39]
[5,5,5,5,5]
[36,36,36,36,36]
[5,5,5,5,5]
[4,4,4,4,4]
[56,56,56,56,56]
[5]
[6,null,5]
[]
[null,null,null,null,9]

{"sheet":"etalons","index":2,"n_rows":26,"n_cols":11,"rows_kept":26,"cut":false,"hidden":false,"merged":[[3,0,13,0],[14,0,24,0],[25,0,35,0],[0,8,2,9],[0,10,2,11],[3,8,13,9],[3,10,13,11],[14,8,24,9],[14,10,24,11],[25,8,35,9],[25,10,35,11]]}
[null,null,null,null,null,null,null,null,"n° d'accréditation",null,"signataire"]
[]
[]
["AUVERGNE QUALITE",{"$f":"IF(mesures!B23=\"NON\",\"- Salle climatisée à 20°C ± 1°C.\",\"\")","v":""},null,null,null,null,null,null,{"$f":"\"2.1145\"","v":"2.1145"},null,{"$f":"\"\"","v":""}]
[null,{"$f":"IF(mesures!B23=\"NON\",\"- Thermomètre à mercure n° ETR/H-002/L.\",\"- Thermomètre n° 96021AQ.\")","v":"- Thermomètre n° 96021AQ."}]
[null,{"$f":"IF(mesures!B23=\"NON\",\"- Hygromètre n° ETR/H-003/L.\",\"\")","v":""}]
[null,{"$f":"IF(mesures!B23=\"non\",\"- MMT SEIV 16 x 08 x 06 n° MYE/001/MMT.\",\"-MMT SEIV 16 x 08 x 06 n° MYE/001/MMT.\")","v":"-MMT SEIV 16 x 08 x 06 n° MYE/001/MMT."}]
[null,{"$f":"IF(mesures!B23=\"non\",\"- Sphère étalon Ø 20 mm n° ETT/001/J/MMT.\",\"- Sphère étalon φ 20 mm n° ETT/001/J/MMT.\")","v":"- Sphère étalon φ 20 mm n° ETT/001/J/MMT."}]
[]
[]
[]
[]
[]
[null,"Trame_GLOBALE_V2_Ind:1"]
["ILE DE FRANCE QUALITE",{"$f":"IF(mesures!B23=\"non\",\"- Salle climatisée à 20°C ± 1°C, Thermomètre à mercure n° ETR/H-002/L.I, Hygromètre n° ETR/H-003/L/I\",\"\")","v":""},null,null,null,null,null,null,{"$f":"\"2.1370\"","v":"2.1370"},null,"L. SITARSKI"]
[null,{"$f":"\"- Marbre en roche n° ETR/L-005/IDFQ.\"","v":"- Marbre en roche n° ETR/L-005/IDFQ."}]
[null,{"$f":"\"- Jeux de cales étalons identifiés :  n° ETT/C-001/J1/I à ETT/C-001/J10/I, n° ETT/C-002/J1/I à ETT/C-002/J10/I,\"","v":"- Jeux de cales étalons identifiés :  n° ETT/C-001/J1/I à ETT/C-001/J10/I, n° ETT/C-002/J1/I à ETT/C-002/J10/I,"}]
[null,"  n° ETT/C-002/P1 IDFQ à ETT/C-002/P11 IDFQ, n° ETT/C-003/P1 IDFQ à ETT/C-003/P11 IDFQ, "]
[null,"  Cale de 1 mm, identifiée n° 910231 et cale de 2,5 mm, identifiée 910930"]
[]
[]
[]
[]
[]
[]
["ALPES QUALITE"]

{"sheet":"Infos","index":3,"n_rows":21,"n_cols":5,"rows_kept":21,"cut":false,"hidden":false,"merged":[]}
["Client :"]
["Adresse :"]
["Adresse :"]
["No PV :"]
["Instrument :"]
["Marque :"]
["Ident. :"]
["No serie :"]
[]
[]
[]
[]
[null,null,null,null,{"$f":"RIGHT(LEFT(B4,14),8)&\" \"&SUBSTITUTE(B7,\"/\",\"_\")&\" \"&SUBSTITUTE(TEXT(E14,\"jjmmaaaa\"),\"/\",\"\")&\"-\"&LEFT(RIGHT(B4,10),8)","v":"  08112019-"}]
["Design",{"$f":"mesures!B1","v":0},null,null,{"$f":"TODAY()","v":43777}]
["ctype",{"$f":"mesures!B7","v":0},null,null,{"$f":"MONTH(E14)","v":11}]
["typeI",null,null,null,{"$f":"YEAR(E14)","v":2019}]
["Capa",{"$f":"mesures!B8","v":0}]
["Conforme",{"$f":"mesures!A74","v":0}]
["Refer",{"$f":"mesures!B9&\" \"&mesures!B10","v":" "}]
["Proc",{"$f":"mesures!B25","v":0}]
["Opérateur",{"$f":"mesures!B21","v":0}]